fUST/lending_fUST_20250707
["ID","MTS","AMOUNT","RATE_DAILY","PERIOD"]
[370035994,1751854254687,-1500.0,0.0002322,2]
[370035995,1751854254696,-1500.0,0.0002322,2]
[370035996,1751854254706,-1500.0,0.0002322,2]
[370035997,1751854254715,-1500.0,0.0002322,2]
[370035998,1751854254725,-1523.91820156,0.0002322,2]
[370035999,1751854254734,-968.6,0.00023274,2]
[370036000,1751854254743,-1570.74,0.00023275,2]
[370036001,1751854254753,-460.0,0.00023275,2]
[370036002,1751854254762,-796.1,0.00023275,2]
[370036003,1751854254771,-918.24,0.00023276,2]
[370036004,1751854254780,-460.0,0.00023276,2]
[370036005,1751854254789,-555.41,0.00023276,2]
[370036006,1751854254798,-460.0,0.00023276,2]
[370036007,1751854254808,-460.0,0.00023284,2]
[370036008,1751854254817,-150.0,0.00023289,2]
[370036009,1751854254827,-991.02615029,0.0002329,4]
[370036010,1751854254836,-991.02615029,0.0002329,4]
[370036011,1751854254846,-991.02615029,0.0002329,4]
[370036012,1751854254856,-991.02615029,0.0002329,4]
[370036013,1751854254865,-991.02615029,0.0002329,4]
[370036014,1751854254875,-991.02615029,0.0002329,4]
[370036015,1751854254884,-991.02615029,0.0002329,4]
[370036016,1751854254894,-991.02615029,0.0002329,4]
[370036017,1751854254904,-991.02615029,0.0002329,4]
[370036018,1751854254913,-991.02615029,0.0002329,4]
[370036019,1751854254923,-991.02615029,0.0002329,4]
[370036020,1751854254934,-991.02615029,0.0002329,4]
[370036021,1751854254946,-991.02615029,0.0002329,4]
[370036022,1751854254961,-991.02615029,0.0002329,4]
[370036023,1751854254972,-991.02615029,0.0002329,4]
[370036024,1751854254982,-991.02615029,0.0002329,4]
[370036025,1751854254992,-991.02615029,0.0002329,4]
[370036026,1751854255002,-991.02615029,0.0002329,4]
[370036027,1751854255011,-991.02615029,0.0002329,4]
[370036028,1751854255020,-991.02,0.0002329,4]
[370036029,1751854255030,-2312.39435067,0.0002329,4]
[370036030,1751854255041,-2312.39435067,0.0002329,4]
[370036031,1751854255051,-2312.39435067,0.0002329,4]
[370036032,1751854255062,-2312.39435067,0.0002329,4]
[370036033,1751854255072,-2312.39435067,0.0002329,4]
[370036034,1751854255083,-2312.39435067,0.0002329,4]
[370036035,1751854255093,-2312.39435067,0.0002329,4]
[370036036,1751854255102,-2312.39435067,0.0002329,4]
[370036037,1751854255111,-2312.39435067,0.0002329,4]
[370036038,1751854255120,-2312.39435067,0.0002329,4]
[370036039,1751854255129,-2312.39435067,0.0002329,4]
[370036040,1751854255139,-2312.39435067,0.0002329,4]
[370036041,1751854255148,-2312.39435067,0.0002329,4]
[370036042,1751854255157,-2312.39435067,0.0002329,4]
[370036043,1751854255167,-2312.39435067,0.0002329,4]
[370036044,1751854255176,-2312.39435067,0.0002329,4]
[370036045,1751854255186,-2312.39435067,0.0002329,4]
[370036046,1751854255196,-2312.39435067,0.0002329,4]
[370036047,1751854255205,-2312.39435067,0.0002329,4]
[370036048,1751854255215,-2312.39,0.0002329,4]
[370036049,1751854255227,-150.18282476,0.0002329,4]
[370036050,1751854255236,-150.18282476,0.0002329,4]
[370036051,1751854255246,-150.18282476,0.0002329,4]
[370036052,1751854255259,-150.18282476,0.0002329,4]
[370036053,1751854255270,-150.18282476,0.0002329,4]
[370036054,1751854255280,-150.18282476,0.0002329,4]
[370036055,1751854255294,-150.18282476,0.0002329,4]
[370036056,1751854255313,-150.18282476,0.0002329,4]
[370036057,1751854255328,-150.18282476,0.0002329,4]
[370036058,1751854255339,-150.18282476,0.0002329,4]
[370036059,1751854255354,-150.18282476,0.0002329,4]
[370036060,1751854255368,-150.18282476,0.0002329,4]
[370036061,1751854255383,-150.18282476,0.0002329,4]
[370036062,1751854255398,-150.18282476,0.0002329,4]
[370036063,1751854255414,-150.18282476,0.0002329,4]
[370036064,1751854255427,-150.18282476,0.0002329,4]
[370036065,1751854255443,-150.18282476,0.0002329,4]
[370036066,1751854255457,-150.18282476,0.0002329,4]
[370036067,1751854255472,-150.18282476,0.0002329,4]
[370036068,1751854255486,-150.18,0.0002329,4]
[370036069,1751854255500,-350.42659112,0.0002329,4]
[370036070,1751854255510,-350.42659112,0.0002329,4]
[370036071,1751854255525,-350.42659112,0.0002329,4]
[370036072,1751854255538,-350.42659112,0.0002329,4]
[370036073,1751854255554,-350.42659112,0.0002329,4]
[370036074,1751854255568,-350.42659112,0.0002329,4]
[370036075,1751854255582,-350.42659112,0.0002329,4]
[370036076,1751854255597,-350.42659112,0.0002329,4]
[370036077,1751854255610,-350.42659112,0.0002329,4]
[370036078,1751854255621,-350.42659112,0.0002329,4]
[370036079,1751854255633,-350.42659112,0.0002329,4]
[370036080,1751854255648,-350.42659112,0.0002329,4]
[370036081,1751854255664,-350.42659112,0.0002329,4]
[370036082,1751854255676,-350.42659112,0.0002329,4]
[370036083,1751854255688,-350.42659112,0.0002329,4]
[370036084,1751854255703,-350.42659112,0.0002329,4]
[370036085,1751854255714,-350.42659112,0.0002329,4]
[370036086,1751854255725,-350.42659112,0.0002329,4]
[370036087,1751854255737,-350.42659112,0.0002329,4]
[370036088,1751854255750,-350.42,0.0002329,4]
[370036089,1751854255762,-73361.25,0.000233,7]
[370036090,1751854255775,-134829.11,0.000233,2]
[370036091,1751854255787,-5370.95,0.000233,7]
[370036092,1751854255800,-154.113659,0.000233,7]
[370036093,1751854255812,-165.585253,0.000233,7]
[370036094,1751854255824,-151.0,0.000233,7]
[370036095,1751854255836,-151.0,0.000233,7]
[370036096,1751854255848,-151.0,0.000233,7]
[370036097,1751854255860,-848.27993403,0.000233,7]
[370036098,1751854255872,-151.0,0.000233,7]
[370036099,1751854255884,-151.0,0.000233,7]
[370036100,1751854255897,-151.0,0.000233,7]
[370036101,1751854255909,-723.06,0.00023381,2]
[370036102,1751854255921,-583.48,0.00023381,2]
[370036103,1751854255934,-726.04,0.00023383,2]
[370036104,1751854255947,-520.46,0.00023383,2]
[370036105,1751854255959,-751.74,0.00023383,2]
[370036106,1751854255972,-989.66,0.00023383,2]
[370036107,1751854255984,-462.52,0.00023383,2]
[370036108,1751854255997,-553.78,0.00023383,2]
[370036109,1751854256010,-460.0,0.00023383,2]
[370036110,1751854256022,-500.0,0.00023448,2]
[370036111,1751854256035,-205.60810597,0.00023448,2]
[370036112,1751854256047,-151.64701351,0.00023448,2]
[370036113,1751854256059,-549.22373411,0.00023475,2]
[370036114,1751854256072,-200.44896522,0.00023499,2]
[370036115,1751854256084,-968.6,0.00023548,2]
[370036116,1751854256097,-1570.74,0.00023549,2]
[370036117,1751854256109,-460.0,0.00023549,2]
[370036118,1751854256121,-796.1,0.00023549,2]
[370036119,1751854256130,-918.24,0.0002355,2]
[370036120,1751854256139,-460.0,0.0002355,2]
[370036121,1751854256149,-555.41,0.0002355,2]
[370036122,1751854256158,-460.0,0.0002355,2]
[370036123,1751854256167,-487.5,0.00023558,2]
[370036124,1751854256176,-200.0,0.00023561,2]
[370036125,1751854256185,-200.0,0.00023561,2]
[370036126,1751854256194,-200.0,0.00023561,2]
[370036127,1751854256204,-200.0,0.00023561,2]
[370036128,1751854256213,-200.0,0.00023561,2]
[370036129,1751854256227,-304.53261215,0.00023561,2]
[370036130,1751854256235,-730.2,0.000236,7]
[370036131,1751854256245,-2400.0,0.00023616,2]
[370036132,1751854256256,-723.06,0.00023655,2]
[370036133,1751854256266,-583.48,0.00023655,2]
[370036134,1751854256276,-726.04,0.00023657,2]
[370036135,1751854256285,-520.46,0.00023657,2]
[370036136,1751854256296,-751.74,0.00023657,2]
[370036137,1751854256473,-989.66,0.00023657,2]
[370036138,1751854256487,-462.52,0.00023657,2]
[370036139,1751854256496,-553.78,0.00023657,2]
[370036140,1751854256506,-460.0,0.00023657,2]
[370036141,1751854256516,-968.6,0.00023822,2]
[370036142,1751854256525,-151.0,0.00023822,7]
[370036143,1751854256534,-151.0,0.00023822,7]
[370036144,1751854256544,-151.0,0.00023822,7]
[370036145,1751854256553,-152.895879,0.00023822,7]
[370036146,1751854256562,-151.0,0.00023822,7]
[370036147,1751854256571,-151.0,0.00023822,7]
[370036148,1751854256581,-151.0,0.00023822,7]
[370036149,1751854256590,-1570.74,0.00023823,2]
[370036150,1751854256600,-460.0,0.00023823,2]
[370036151,1751854256609,-796.1,0.00023823,2]
[370036152,1751854256618,-918.24,0.00023824,2]
[370036153,1751854256628,-460.0,0.00023824,2]
[370036154,1751854256637,-555.41,0.00023824,2]
[370036155,1751854256646,-460.0,0.00023824,2]
[370036156,1751854256656,-300.0,0.00023837,2]
[370036157,1751854256666,-160.0,0.0002385,3]
[370036158,1751854256676,-600.0,0.00023886,2]
[370036159,1751854256685,-3668.19456835,0.000239,2]
[370036160,1751854256695,-723.06,0.00023929,2]
[370036161,1751854256704,-583.48,0.00023929,2]
[370036162,1751854256713,-726.04,0.00023931,2]
[370036163,1751854256723,-520.46,0.00023931,2]
[370036164,1751854256733,-751.74,0.00023931,2]
[370036165,1751854256743,-989.66,0.00023931,2]
[370036166,1751854256753,-462.52,0.00023931,2]
[370036167,1751854256763,-553.78,0.00023931,2]
[370036168,1751854256772,-460.0,0.00023931,2]
[370036169,1751854256782,-442.4379348,0.00023986,2]
[370036170,1751854256791,-2000.0,0.00024,2]
[370036171,1751854256800,-2000.0,0.00024,2]
[370036172,1751854256810,-837.79946008,0.00024,7]
[370036173,1751854256819,-230.48668418,0.00024,7]
[370036174,1751854256828,-160.0,0.00024,7]
[370036175,1751854256838,-215.21338352,0.00024,7]
[370036176,1751854256847,-160.0,0.00024,7]
[370036177,1751854256857,-160.0,0.00024,7]
[370036178,1751854256866,-168.0,0.0002404,2]
[370036179,1751854256875,-168.0,0.00024059,2]
[370036180,1751854256884,-154.44747601,0.0002407,2]
[370036181,1751854256893,-294.9586232,0.00024086,2]
[370036182,1751854256902,-968.6,0.00024096,2]
[370036183,1751854256912,-1570.74,0.00024097,2]
[370036184,1751854256921,-460.0,0.00024097,2]
[370036185,1751854256931,-796.1,0.00024097,2]
[370036186,1751854256940,-918.24,0.00024098,2]
[370036187,1751854256949,-469.81067053,0.00024098,2]
[370036188,1751854256959,-555.41,0.00024098,2]
[370036189,1751854256968,-460.0,0.00024098,2]
[370036190,1751854256978,-3000.0,0.00024164,2]
[370036191,1751854256988,-168.0,0.00024165,2]
[370036192,1751854256998,-2000.0,0.000242,2]
[370036193,1751854257007,-723.06,0.00024203,2]
[370036194,1751854257017,-583.48,0.00024203,2]
[370036195,1751854257026,-726.04,0.00024205,2]
[370036196,1751854257035,-520.46,0.00024205,2]
[370036197,1751854257045,-751.74,0.00024205,2]
[370036198,1751854257055,-989.66,0.00024205,2]
[370036199,1751854257064,-462.52,0.00024205,2]
[370036200,1751854257074,-553.78,0.00024205,2]
[370036201,1751854257084,-460.0,0.00024205,2]
[370036202,1751854257094,-160.0,0.00024285,4]
[370036203,1751854257103,-168.0,0.00024316,2]
[370036204,1751854257113,-151.0,0.00024368,7]
[370036205,1751854257122,-968.6,0.0002437,2]
[370036206,1751854257133,-1570.74,0.00024371,2]
[370036207,1751854257143,-460.0,0.00024371,2]
[370036208,1751854257152,-796.1,0.00024371,2]
[370036209,1751854257162,-918.24,0.00024372,2]
[370036210,1751854257172,-555.41,0.00024372,2]
[370036211,1751854257181,-460.0,0.00024372,2]
[370036212,1751854257191,-450.0,0.00024385,2]
[370036213,1751854257202,-150.0,0.00024473,2]
[370036214,1751854257211,-723.06,0.00024476,2]
[370036215,1751854257223,-726.04,0.00024479,2]
[370036216,1751854257232,-520.46,0.00024479,2]
[370036217,1751854257242,-751.74,0.00024479,2]
[370036218,1751854257251,-989.66,0.00024479,2]
[370036219,1751854257261,-462.52,0.00024479,2]
[370036220,1751854257271,-553.78,0.00024479,2]
[370036221,1751854257280,-460.0,0.00024479,2]
[370036222,1751854257290,-73361.25,0.000245,7]
[370036223,1751854257299,-134829.11,0.000245,2]
[370036224,1751854257309,-5370.95,0.000245,7]
[370036225,1751854257318,-152.164207,0.000245,7]
[370036226,1751854257327,-151.0,0.000245,7]
[370036227,1751854257336,-67549.28180866,0.00024552,2]
[370036228,1751854257346,-151.0,0.00024552,7]
[370036229,1751854257356,-151.0,0.00024552,7]
[370036230,1751854257367,-151.0,0.00024552,7]
[370036231,1751854257377,-151.0,0.00024552,7]
[370036232,1751854257387,-3543.04902959,0.00024567,2]
[370036233,1751854257399,-215.0738,0.00024589,2]
[370036234,1751854257409,-641.0,0.000246,2]
[370036235,1751854257418,-151.0,0.00024644,7]
[370036236,1751854257427,-151.0,0.00024644,7]
[370036237,1751854257436,-968.6,0.00024644,2]
[370036238,1751854257446,-1570.74,0.00024645,2]
[370036239,1751854257455,-329.19204412,0.00024645,2]
[370036240,1751854257465,-796.1,0.00024645,2]
[370036241,1751854257475,-918.24,0.00024646,2]
[370036242,1751854257484,-555.41,0.00024646,2]
[370036243,1751854257493,-460.0,0.00024646,2]
[370036244,1751854257503,-300.0,0.00024657,4]
[370036245,1751854257512,-300.0,0.00024657,4]
[370036246,1751854257521,-300.0,0.00024657,4]
[370036247,1751854257531,-300.0,0.00024657,4]
[370036248,1751854257540,-300.0,0.00024657,4]
[370036249,1751854257550,-300.0,0.00024657,4]
[370036250,1751854257559,-327.85232221,0.00024657,4]
[370036251,1751854257569,-200.0,0.00024657,2]
[370036252,1751854257578,-210.00855503,0.00024657,2]
[370036253,1751854257587,-150.0,0.00024658,2]
[370036254,1751854257597,-380.0,0.00024658,2]
[370036255,1751854257607,-200.0,0.00024658,15]
[370036256,1751854257617,-466.0,0.00024658,2]
[370036257,1751854257626,-500.0,0.00024658,2]
[370036258,1751854257635,-616.33482191,0.00024658,2]
[370036259,1751854257645,-500.0,0.00024658,2]
[370036260,1751854257654,-52103.39346271,0.00024673,2]
[370036261,1751854257664,-466.0,0.00024685,2]
[370036262,1751854257673,-151.0,0.0002469,7]
[370036263,1751854257683,-151.0,0.0002469,7]
[370036264,1751854257693,-151.0,0.0002469,7]
[370036265,1751854257703,-151.0,0.0002469,7]
[370036266,1751854257713,-151.0,0.0002469,7]
[370036267,1751854257722,-151.0,0.0002469,7]
[370036268,1751854257731,-168.0,0.00024697,2]
[370036269,1751854257740,-168.0,0.00024702,2]
[370036270,1751854257749,-3600.0,0.00024712,2]
[370036271,1751854257759,-466.0,0.00024713,2]
[370036272,1751854257768,-160.0,0.00024721,5]
[370036273,1751854257778,-466.0,0.0002474,2]
[370036274,1751854257787,-723.06,0.0002475,2]
[370036275,1751854257796,-168.0,0.00024752,2]
[370036276,1751854257805,-726.04,0.00024753,2]
[370036277,1751854257815,-520.46,0.00024753,2]
[370036278,1751854257824,-751.74,0.00024753,2]
[370036279,1751854257833,-989.66,0.00024753,2]
[370036280,1751854257842,-462.52,0.00024753,2]
[370036281,1751854257851,-553.78,0.00024753,2]
[370036282,1751854257861,-460.0,0.00024753,2]
[370036283,1751854257870,-168.0,0.00024763,2]
[370036284,1751854257880,-466.0,0.00024768,2]
[370036285,1751854257890,-168.0,0.00024782,2]
[370036286,1751854257899,-405784.754923,0.0002479,15]
[370036287,1751854257909,-244.093343,0.0002479,7]
[370036288,1751854257919,-151.0,0.0002479,2]
[370036289,1751854257928,-151.0,0.0002479,7]
[370036290,1751854257938,-164.510099,0.0002479,7]
[370036291,1751854257947,-151.0,0.0002479,7]
[370036292,1751854257956,-151.0,0.0002479,7]
[370036293,1751854257965,-151.0,0.0002479,7]
[370036294,1751854257974,-151.0,0.0002479,7]
[370036295,1751854257984,-151.0,0.0002479,7]
[370036296,1751854257993,-151.0,0.0002479,7]
[370036297,1751854258002,-151.0,0.0002479,7]
[370036298,1751854258011,-151.0,0.0002479,7]
[370036299,1751854258021,-151.0,0.0002479,7]
[370036300,1751854258030,-151.0,0.0002479,7]
[370036301,1751854258040,-151.0,0.0002479,7]
[370036302,1751854258050,-466.0,0.00024795,2]
[370036303,1751854258060,-2000.0,0.000248,2]
[370036304,1751854258069,-730.2,0.000248,7]
[370036305,1751854258079,-110058.143292,0.000248,2]
[370036306,1751854258089,-823.0,0.00024804,2]
[370036307,1751854258098,-168.0,0.00024815,2]
[370036308,1751854258108,-466.0,0.00024822,2]
[370036309,1751854258118,-238.40868167,0.00024836,7]
[370036310,1751854258127,-466.0,0.0002485,2]
[370036311,1751854258137,-1300.351544,0.00024855,4]
[370036312,1751854258147,-151.0,0.00024865,7]
[370036313,1751854258156,-1498.20536688,0.00024865,2]
[370036314,1751854258165,-466.0,0.00024877,2]
[370036315,1751854258174,-299999.9952262,0.0002489,15]
[370036316,1751854258184,-151.0,0.0002489,2]
[370036317,1751854258193,-151.0,0.0002489,7]
[370036318,1751854258202,-246.179633,0.0002489,7]
[370036319,1751854258212,-296.190035,0.0002489,7]
[370036320,1751854258225,-151.0,0.0002489,7]
[370036321,1751854258235,-151.0,0.0002489,7]
[370036322,1751854258244,-151.0,0.0002489,7]
[370036323,1751854258254,-151.0,0.0002489,7]
[370036324,1751854258265,-151.0,0.0002489,7]
[370036325,1751854258275,-155.621158,0.0002489,7]
[370036326,1751854258283,-151.0,0.0002489,7]
[370036327,1751854258293,-151.0,0.0002489,7]
[370036328,1751854258302,-156.934321,0.0002489,7]
[370036329,1751854258312,-741.98056,0.00024899,4]
[370036330,1751854258322,-209.0,0.000249,2]
[370036331,1751854258333,-209.0,0.000249,2]
[370036332,1751854258344,-214.03875559,0.000249,7]
[370036333,1751854258354,-157.756693,0.000249,2]
[370036334,1751854258363,-151.0,0.000249,7]
[370036335,1751854258375,-228675.11190315,0.000249,2]
[370036336,1751854258681,-460.0,0.00018945,2]
[370036337,1751854258691,-462.483717,0.00019164,2]
[370036338,1751854258702,-745.97614851,0.000199,2]
[370036339,1751854258711,-739.10519312,0.00019987,2]
[370036340,1751854258818,-460.0,0.00019164,2]
[370036341,1751854258828,-400.54492914,0.00019573,2]
[370036342,1751854258837,-109.05032349,0.00019987,2]
[370036343,1751854258846,-745.97614837,0.00020107,2]
[370036344,1751854258856,-460.0,0.00020262,2]
[370036345,1751854258866,-745.97614837,0.00020314,3]
[370036346,1751854258875,-745.97614837,0.00020521,3]
[370036347,1751854258885,-460.0,0.00020536,2]
[370036348,1751854258894,-745.97614837,0.00020728,3]
[370036349,1751854258904,-460.0,0.0002081,2]
[370036350,1751854258913,-745.97614837,0.00020934,4]
[370036351,1751854258923,-460.0,0.00021084,2]
[370036352,1751854258932,-745.97614837,0.00021141,4]
[370036353,1751854258941,-745.97614837,0.00021348,5]
[370036354,1751854258950,-460.0,0.00021358,2]
[370036355,1751854258960,-745.97614837,0.00021555,5]
[370036356,1751854258969,-460.0,0.00021632,2]
[370036357,1751854258978,-745.97614837,0.00021762,5]
[370036358,1751854258987,-460.0,0.00021906,2]
[370036359,1751854258997,-500.0,0.00021917,2]
[370036360,1751854259007,-500.0,0.00021917,2]
[370036361,1751854259016,-500.0,0.00021917,2]
[370036362,1751854259025,-500.0,0.00021917,2]
[370036363,1751854259034,-500.0,0.00021917,2]
[370036364,1751854259044,-500.0,0.00021917,2]
[370036365,1751854259053,-500.0,0.00021917,2]
[370036366,1751854259062,-500.0,0.00021917,2]
[370036367,1751854259072,-500.0,0.00021917,2]
[370036368,1751854259082,-500.0,0.00021917,2]
[370036369,1751854259091,-500.0,0.00021917,2]
[370036370,1751854259100,-745.97614837,0.00021969,6]
[370036371,1751854259109,-745.97614837,0.00022176,6]
[370036372,1751854259119,-407.889,0.00022176,2]
[370036373,1751854259128,-500.0,0.00022178,2]
[370036374,1751854259137,-460.0,0.0002218,2]
[370036375,1751854259147,-414.49070795,0.00022452,2]
[370036376,1751854259156,-460.0,0.00022454,2]
[370036377,1751854259166,-460.0,0.00022728,2]
[370036378,1751854259175,-460.0,0.00023002,2]
[370036379,1751854259185,-460.0,0.00023276,2]
[370036380,1751854259194,-372.36499303,0.0002355,2]
[370036381,1751854259204,-583.48,0.00024476,2]
[370036382,1751854259338,-151.0,0.000245,7]
[370036383,1751854259350,-583.48,0.0002475,2]
[370036384,1751854259360,-151.0,0.0002479,7]
[370036385,1751854259371,-151.0,0.0002489,7]
[370036386,1751854259380,-7485.295038,0.000249,2]
[370036387,1751854259480,-13020.33505331,0.000249,2]
[370036388,1751854259529,-31.228742,0.000249,2]
[370036389,1751854283198,1000.0,0.00027,120]
[370036390,1751854503139,13941.47855689,0.000162,2]
[370036391,1751854750256,-830.0,0.00018707,2]
[370036392,1751854861856,182.318307,0.00013699,2]
[370036396,1751855153142,-197.1477808,0.00018212,2]
[370036397,1751855153179,-2056.64538051,0.00018518,2]
[370036398,1751855153203,-300.0,0.0001899,2]
[370036399,1751855153226,-199.53683787,0.00018991,2]
[370036400,1751855199076,-153.68027246,0.0001899,2]
[370036401,1751855231085,-272.06299236,0.0001889,2]
[370036402,1751855231107,-300.0,0.00018989,2]
[370036403,1751855231128,-269.15656348,0.0001899,2]
[370036404,1751855231150,-253.14570446,0.0001899,2]
[370036405,1751855231171,-465.39837242,0.0001899,2]
[370036406,1751855316294,79208.79707235,0.00016209,2]
[370036407,1751855318717,300.79080626,0.00017,2]
[370036408,1751855322729,3209.26725846,0.00025347,60]
[370036409,1751855323641,1070.36449081,0.00025347,120]
[370036410,1751855325146,-374.62618979,0.00017,2]
[370036414,1751855331025,-231.84616984,0.00017,2]
[370036415,1751855334409,-160.40622917,0.00017,2]
[370036416,1751855339024,-178.0,0.00017,2]
[370036417,1751855342725,-158.64697996,0.00017,2]
[370036418,1751855344487,-163.25735844,0.00016999,2]
[370036419,1751855349105,-136.74264156,0.00016999,2]
[370036420,1751855349319,-176.01737073,0.00017,2]
[370036421,1751855351830,-176.53784178,0.00017,2]
[370036425,1751855353655,-315.87581546,0.00017,2]
[370036426,1751855357095,-48364.48105686,0.00017,2]
[370036427,1751855358105,-732.45539212,0.00017,2]
[370036428,1751855358126,-295.98578516,0.00017999,2]
[370036429,1751855358147,-177.20199312,0.00017999,2]
[370036430,1751855358168,-500.0,0.00017999,2]
[370036431,1751855358189,-630.5560773,0.00017999,2]
[370036432,1751855358210,-500.0,0.00017999,2]
[370036433,1751855358231,-425.55094728,0.00017999,2]
[370036434,1751855358254,-500.0,0.00017999,2]
[370036435,1751855358275,-500.0,0.00017999,2]
[370036436,1751855358296,-500.0,0.00017999,2]
[370036437,1751855358317,-500.0,0.00017999,2]
[370036438,1751855358337,-500.0,0.00017999,2]
[370036439,1751855358357,-500.0,0.00017999,2]
[370036440,1751855358378,-500.0,0.00017999,2]
[370036441,1751855358399,-500.0,0.00017999,2]
[370036442,1751855358420,-500.0,0.00017999,2]
[370036443,1751855358442,-500.0,0.00017999,2]
[370036444,1751855358462,-188.62146959,0.00017999,2]
[370036445,1751855358484,-500.0,0.00017999,2]
[370036446,1751855358505,-612.4649079,0.00017999,2]
[370036447,1751855358526,-500.0,0.00017999,2]
[370036448,1751855358548,-500.0,0.00017999,2]
[370036449,1751855358569,-500.0,0.00017999,2]
[370036450,1751855358591,-500.0,0.00017999,2]
[370036451,1751855358612,-500.0,0.00017999,2]
[370036452,1751855358633,-500.0,0.00017999,2]
[370036453,1751855358655,-500.0,0.00017999,2]
[370036454,1751855358675,-500.0,0.00017999,2]
[370036455,1751855358697,-209.57094359,0.00017999,2]
[370036456,1751855358719,-500.0,0.00017999,2]
[370036457,1751855358740,-500.0,0.00017999,2]
[370036458,1751855358762,-500.0,0.00017999,2]
[370036459,1751855358783,-500.0,0.00017999,2]
[370036460,1751855358804,-500.0,0.00017999,2]
[370036461,1751855358825,-500.0,0.00017999,2]
[370036462,1751855358845,-500.0,0.00017999,2]
[370036463,1751855358866,-500.0,0.00017999,2]
[370036464,1751855358887,-500.0,0.00017999,2]
[370036465,1751855358908,-500.0,0.00017999,2]
[370036466,1751855358932,-500.0,0.00017999,2]
[370036467,1751855358953,-500.0,0.00017999,2]
[370036468,1751855358975,-130.9864208,0.00017999,2]
[370036469,1751855359110,-369.0135792,0.00017999,2]
[370036470,1751855359131,-500.0,0.00017999,2]
[370036471,1751855359152,-500.0,0.00017999,2]
[370036472,1751855359174,-500.0,0.00017999,2]
[370036473,1751855359195,-500.0,0.00017999,2]
[370036474,1751855359223,-500.0,0.00017999,2]
[370036475,1751855359244,-500.0,0.00017999,2]
[370036476,1751855359265,-500.0,0.00017999,2]
[370036477,1751855359286,-500.0,0.00017999,2]
[370036478,1751855359308,-500.0,0.00017999,2]
[370036479,1751855359327,-500.0,0.00017999,2]
[370036480,1751855359348,-233.6518168,0.00017999,2]
[370036481,1751855359368,-500.0,0.00017999,2]
[370036482,1751855359388,-500.0,0.00017999,2]
[370036483,1751855359408,-492.97483647,0.00017999,2]
[370036484,1751855359427,-503.39641385,0.00017999,2]
[370036485,1751855359447,-500.0,0.00017999,2]
[370036486,1751855359468,-500.0,0.00017999,2]
[370036487,1751855359488,-500.0,0.00017999,2]
[370036488,1751855359508,-500.0,0.00017999,2]
[370036489,1751855359528,-500.0,0.00017999,2]
[370036490,1751855359548,-500.0,0.00017999,2]
[370036491,1751855359569,-500.0,0.00017999,2]
[370036492,1751855359588,-500.0,0.00017999,2]
[370036493,1751855359608,-500.0,0.00017999,2]
[370036494,1751855359628,-500.0,0.00017999,2]
[370036495,1751855359648,-578.84121596,0.00017999,2]
[370036496,1751855359668,-500.0,0.00017999,2]
[370036497,1751855359688,-60173.05881136,0.00018,2]
[370036498,1751855359706,-9480.58883569,0.00018,2]
[370036499,1751855359725,-31988.18058217,0.00018,2]
[370036500,1751855359745,-12443.22737752,0.00018,2]
[370036501,1751855359763,-5100.17396989,0.00018,2]
[370036502,1751855359783,-151.30067541,0.00018,2]